Workbook

Sheet Inhoudsopgave
A1: Lijsten
A3: # | B3: Type
A4: 1 | B4: Werflocaties
A5: 2 | B5: Lijst met locaties afvalverwerkers en overslag
A6: 3 | B6: Lijst met afvalfracties per stadsdeel
A7: 4 | B7: Overzicht afvalcontainers per afvalfractie, per stadsdeel
A8: 5 | B8: Lijst met afvalcontainerlocaties
A9: 6 | B9: Overzicht inzamelvoertuigen
A10: 7 | B10: Kengetallen uitvoerend en indirect personeel
A11: 8 | B11: Lijst met aanwezige applicaties (ICT architectuur)
A12: 9 | B12: Reeds aanwezige informatieplatformen incl. koppelvlakken
A13: 10 | B13: Relevante informatie verkeer en infrastructuur Amsterdam
A14: 11 | B14: Gemiddelde voertuigproductiviteit per stadsdeel, per fractie

Sheet 1
A1: 1. Werflocaties
A3: # | B3: Locatie | C3: Postcode | D3: Stadsdeel
A4: 1 | B4: Henk Sneevlietweg 20 | C4: 1066VH | D4: Nieuw West
A5: 2 | B5: Jacob Bontiusplaats 11 | C5: 1018LL | D5: Centrum
A6: 3 | B6: Papaverweg 33 | C6: 1032KE | D6: Noord
A7: 4 | B7: Schepenbergweg 39 | C7: 1105AS | D7: Zuidoost
A8: 5 | B8: Luchtvaartstraat 9 | C8: 1059CA | D8: Zuid
A9: 6 | B9: Cruquiusweg 92 | C9: 1019AJ | D9: Oost
A10: 7 | B10: Nieuw-Zeelandweg 45-46 | C10: 1045AM | D10: West

Sheet 2
A1: 2. Lijst met locaties afvalverwerkers en overslaglocaties (List with waste treatment plants and transhipment hubs)
A3: # | B3: Verwerker | C3: Adres | D3: Postcode | E3: Plaats | F3: Afvalfractie
A4: 1 | B4: Afvalenergie Bedrijf (AEB) Amsterdam | C4: Australiëhavenweg 21 | D4: 1045 BA | E4: Amsterdam | F4: Rest & Bruin en witgoed
A5: 2 | B5: SUEZ / Sita Amsterdam | C5: Aziëhavenweg 18 | D5: 1046 BK | E5: Amsterdam | F5: Kunststof
A6: 3 | B6: Van Gansewinkel | C6: Nieuwe Hemweg 8-10 | D6: 1013 BG | E6: Amsterdam | F6: Hout, Grofvuil, Glas & Oud papier en Karton
A7: 4 | B7: Heemsbergen Recycling B.V. | C7: Stammerdijk 16 | D7: 1112 AA | E7: Diemen | F7: Papier
A9: # | B9: Overslaglocatie | C9: Adres | D9: Postcode | E9: Plaats | F9: Afvalfractie | G9: Capaciteit
A10: 5 | B10: Overslagpunt afzetcontainers | C10: Zuider-Ijstraat | D10: 1098XH | E10: Amsterdam | F10: Rest | G10: 45 afzetcontainers, 9 voertuigen met container wisselsysteem (IES)
A11: 6 | B11: Overslagpunt afzetcontainers | C11: Meerkerkdreef 31 | D11: 1106 GZ | E11: Amsterdam | F11: Rest | G11: 10 afzetcontainers, 2 voertuigen met container wisselsysteem (IES)
A12: 6 | B12: Overslagpunt afzetcontainers [1] | C12: Toetsenbordweg 11 | D12: 1033 MZ | E12: Amsterdam | F12: Rest | G12: n.n.b.
B14: Opmerkingen :
B15: [1] De ontwikkeling en oplevering van de locatie Toetsenbordweg staat gepland in 2019. In 2018 wordt onderzoek verricht naar nieuwe (extra) overslaglocaties.

Sheet 3
A1: 3. Lijst met afvalfracties per stadsdeel
C3: Stadsdeel (city district)
C4: Nieuw-West | D4: Centrum | E4: Noord | F4: Zuidoost | G4: Zuid | H4: Oost | I4: West
A5: Rest | B5: Zakken | C5: √ | D5: √ | F5: √
B6: Rolcontainers | C6: √ | F6: √ | G6: √ | H6: √
B7: Afvalcontainers | C7: √ | D7: √ | E7: √ | F7: √ | G7: √ | H7: √ | I7: √
B8: Afvalcontainers - Ruilsysteem Ecopers | E8: √
A10: Oud papier en karton | B10: Rolcontainers
B11: Afvalcontainers | C11: √ | D11: √ | E11: √ | F11: √ | G11: √ | H11: √ | I11: √
B12: Afvalcontainers - Ruilsysteem Ecopers | E12: √
A14: Glas | B14: Afvalcontainers | C14: √ | D14: √ | E14: √ | F14: √ | G14: √ | H14: √ | I14: √
B15: Afvalcontainers - Ruilsysteem Ecopers | E15: √
A17: Kunststof | B17: Afvalcontainers | C17: √ | D17: √ | E17: √ | F17: √ | G17: √ | H17: √ | I17: √
A19: Groente en fruit | B19: Rolcontainers | C19: √
B20: Afvalcontainers | H20: √

Sheet 4
A1: 4. Overzicht afvalcontainers per afvalfractie, per stadsdeel (bijgewerkt tot maart 2018)
A3: Aantal afvalcontainers, per afvalfractie, per stadsdeel
B4: West | C4: Centrum | D4: Nieuw-West | E4: Noord | F4: Oost | G4: Zuid | H4: Zuidoost | I4: Totaal
A5: Glas | B5: 190 | C5: 87 | D5: 229 | E5: 194 | F5: 248 | G5: 236 | H5: 115 | I5: =SUM(B5:H5) -> 1299
A6: Oud papier en karton | B6: 261 | C6: 97 | D6: 547 | E6: 220 | F6: 309 | G6: 245 | H6: 125 | I6: =SUM(B6:H6) -> 1804
A7: Kunststof | B7: 199 | C7: 34 | D7: 160 | E7: 68 | F7: 121 | G7: 76 | H7: 79 | I7: 737
A8: Rest | B8: 1728 | C8: 59 | D8: 1924 | E8: 744 | F8: 1664 | G8: 1663 | H8: 447 | I8: 8229
A9: Totaal: | B9: =SUM(B5:B8) -> 2378 | C9: =SUM(C5:C8) -> 277 | D9: 2860 | E9: 1226 | F9: 2342 | G9: 2220 | H9: 766 | I9: 12069
A11: Aantal afvalcontainers, per afvalfractie, per grootte in m³
B12: West | C12: Centrum | D12: Nieuw-West | E12: Noord [1] | F12: Oost | G12: Zuid | H12: Zuidoost | I12: Totaal
A13: Glas
A14: 3 m³ | B14: 6 | C14: 60 | D14: 85 | E14: 168 | F14: 27 | G14: 206 | H14: 7 | I14: =SUM(B14:H14) -> 559
A15: 4 m³ | B15: 84 | C15: 26 | D15: 140 | E15: 7 | F15: 79 | G15: 17 | H15: 76 | I15: =SUM(B15:H15) -> 429
A16: 5 m³ | B16: 100 | C16: 1 | D16: 4 | E16: 19 | F16: 142 | H16: 31 | I16: 297
A17: anders / onbekend | G17: 13 | H17: 1 | I17: 14
A19: Oud papier en karton
A20: 3 m³ | B20: 9 | C20: 68 | D20: 138 | E20: 176 | F20: 4 | G20: 21 | H20: 7 | I20: =SUM(B20:H20) -> 423
A21: 4 m³ | B21: 7 | C21: 28 | D21: 25 | E21: 15 | F21: 11 | G21: 128 | H21: 77 | I21: =SUM(B21:H21) -> 291
A22: 5 m³ | B22: 244 | C22: 1 | D22: 362 | E22: 29 | F22: 292 | G22: 71 | H22: 38 | I22: 1037
A23: 7 m³ | F23: 1 | I23: 1
A24: anders / onbekend | B24: 1 | D24: 22 | F24: 1 | G24: 25 | H24: 3 | I24: 52
A26: Kunststof [2]
A27: 3 m³ | D27: 1 | F27: 1 | G27: 1 | I27: =SUM(B27:H27) -> 3
A28: 4 m³ | B28: 41 | C28: 23 | D28: 62 | E28: 52 | F28: 3 | G28: 5 | H28: 7 | I28: =SUM(B28:H28) -> 193
A29: 5 m³ | B29: 153 | D29: 94 | E29: 16 | F29: 47 | G29: 2 | H29: 21 | I29: 333
A30: anders / onbekend | B30: 5 | C30: 11 | D30: 3 | F30: 70 | G30: 68 | H30: 51 | I30: 208
A32: Rest
A33: 3 m³ | B33: 72 | C33: 4 | D33: 200 | E33: 684 | F33: 57 | G33: 40 | H33: 19 | I33: =SUM(B33:H33) -> 1076
A34: 4 m³ | B34: 129 | C34: 5 | D34: 3 | E34: 7 | F34: 1 | G34: 928 | I34: 1073
A35: 5 m³ | B35: 1506 | C35: 49 | D35: 1714 | E35: 44 | F35: 1546 | G35: 631 | H35: 417 | I35: 5907
A36: 7 m³ | B36: 4 | C36: 1 | E36: 9 | F36: 53 | G36: 18 | I36: 85
A37: anders / onbekend | B37: 17 | D37: 7 | F37: 7 | G37: 46 | H37: 11 | I37: 88
A39: Totaal: | B39: =SUM(B14:B38) -> 2378 | C39: 277 | D39: 2860 | E39: 1226 | F39: 2342 | G39: 2220 | H39: 766 | I39: =SUM(I14:I38) -> 12069
A42: Opmerkingen (disclaimer):
A43: [1] Stadsdeel Noord heeft ruilcontainers (type Ecopers) in gebruik. Hiervoor vervangen inzamelvoertuigen volle ruilcontainers in voor lege ruilcontainers (i.p.v. het ledigen van afvalcontainers)
A45: [2] De afvalcontainers voor de fractie kunststof en perscontainers van het type Sidcon zijn voorzien van vulgraadmeters.

Sheet 5
A1: 5. Lijst met afvalcontainerlocaties (bijgewerkt tot maart 2018)
A3: # | B3: Fractie | C3: Containertype | D3: Volume in m³ | E3: Adres | F3: Latitude | G3: Longitude
A4: 1 | B4: Rest | C4: 5m3 KHC Rest Amsterdam Standaard 1380*1380*2690 | D4: 5 | E4: Kikkenstein 922, 1104SK Amsterdam | F4: 5231715 | G4: 497374 | H4: Zuidoost
A5: 2 | B5: Rest | C5: 5m3 KHC Rest Amsterdam Standaard 1192*1192*2341 | D5: 5 | E5: Ertskade 127, Amsterdam | F5: 5237400659940950 | G5: 4943218566463650 | H5: Oost
A6: 3 | B6: Rest | C6: 5m3 KHC Rest Amsterdam Standaard 1192*1192*2341 | D6: 5 | E6: Kruitberg 5029B, 1104CA Amsterdam | F6: 5231787 | G6: 497528 | H6: Zuidoost
A7: 4 | B7: Rest | C7: 5m3 KHC Rest Amsterdam Standaard 1192*1192*2341 | D7: 5 | E7: Seinwachterstraat 69, Amsterdam | F7: 5237381405618880 | G7: 4945092480622860 | H7: Oost
A8: 5 | B8: Rest | C8: 5m3 KHC Rest Amsterdam Standaard 1192*1192*2341 | D8: 5 | E8: Seinwachterstraat 69, Amsterdam | F8: 5237381501140280 | G8: 4.945131652e+16 | H8: Oost
A9: 6 | B9: Rest | C9: 5m3 KHC Rest Amsterdam Standaard 1192*1192*2341 | D9: 5 | E9: Kruitberg 5029B, 1104CA Amsterdam | F9: 5231787 | G9: 497528 | H9: Zuidoost
A10: 7 | B10: Rest | C10: 5m3 KHC Rest Amsterdam Standaard 1192*1192*2341 | D10: 5 | E10: Kruitberg 3021, 1104CA Amsterdam | F10: 5231813 | G10: 497658 | H10: Zuidoost
A11: 8 | B11: Rest | C11: 5m3 KHC Rest Amsterdam Standaard 1192*1192*2341 | D11: 5 | E11: Kruitberg 3021, 1104CA Amsterdam | F11: 5231813 | G11: 497658 | H11: Zuidoost
A12: 9 | B12: Rest | C12: 5m3 KHC Rest Amsterdam Standaard 1192*1192*2341 | D12: 5 | E12: Lampenistenstraat 67, Amsterdam | F12: 5237349146595080 | G12: 4945180993520350 | H12: Oost
A13: 10 | B13: Plastic | C13: ONBEKEND | D13: n.t.b. | E13: Bijlmerdreef 790 | F13: 5232008 | G13: 49654 | H13: Zuidoost
A14: 11 | B14: Rest | C14: Oost stadsdeel V-consyst Rest 5m3 Grijsblauw RAL5008 | D14: 5 | E14: Insulindeweg 92, Amsterdam | F14: 5.236103692e+16 | G14: 4935402609394250 | H14: Oost
A15: 12 | B15: Rest | C15: 5m3 KHC Rest Amsterdam Standaard 1192*1192*2341 | D15: 5 | E15: Bijlmerdreef 892, 1103DV Amsterdam | F15: 5232046 | G15: 49668 | H15: Zuidoost
A16: 13 | B16: Rest | C16: Oost stadsdeel V-consyst Rest 5m3 Grijsblauw RAL5008 | D16: 5 | E16: Insulindeweg 94, Amsterdam | F16: 5.236102736e+16 | G16: 4935466870638260 | H16: Oost
A17: 14 | B17: Rest | C17: Oost stadsdeel V-consyst Rest 5m3 Grijsblauw RAL5008 | D17: 5 | E17: Insulindeweg 60, Amsterdam | F17: 5236099146347130 | G17: 4934362582848730 | H17: Oost
A18: 15 | B18: Rest | C18: Oost stadsdeel V-consyst Rest 5m3 Grijsblauw RAL5008 | D18: 5 | E18: Insulindeweg 60, Amsterdam | F18: 523609902349839 | G18: 4934332407997310 | H18: Oost
A19: 16 | B19: Rest | C19: Oost stadsdeel V-consyst Rest 5m3 Grijsblauw RAL5008 | D19: 5 | E19: Insulindeweg 60, Amsterdam | F19: 5.236099187e+16 | G19: 4934304915354910 | H19: Oost
A20: 17 | B20: Rest | C20: 5m3 KHC Rest Amsterdam Standaard 1192*1192*2341 | D20: 5 | E20: Bijlmerdreef 739, Amsterdam | F20: 523189991 | G20: 49636844 | H20: Zuidoost
A21: 18 | B21: Rest | C21: 5m3 KHC Rest Amsterdam Standaard 1192*1192*2341 | D21: 5 | E21: Bijlmerdreef 783, Amsterdam | F21: 523192816 | G21: 49645061 | H21: Zuidoost
A22: 19 | B22: Textiel | C22: Centrum Rest 4m3 EVO KH | D22: 4 | E22: Oosterdokskade 63, Amsterdam | F22: 523759259 | G22: 49067307 | H22: Centrum
A23: 20 | B23: Rest | C23: 5m3 KHC Rest Amsterdam Standaard 1192*1192*2341 | D23: 5 | E23: Bijlmerdreef 903, Amsterdam | F23: 523203661 | G23: 496766 | H23: Zuidoost
A24: 21 | B24: Textiel | C24: 5M3 Textiel 3HKZ OC Vconsyst | D24: 5 | E24: Marowijnestraat 13, Amsterdam | F24: 523621421 | G24: 48535974 | H24: West
A25: 22 | B25: Papier | C25: 5M3 Papier 3HKZ OC Vconsyst | D25: 5 | E25: Postjeskade 6, Amsterdam | F25: 523636302 | G25: 48524626 | H25: West
A26: 23 | B26: Glas 1 | C26: 5m3 KHC Glas Amsterdam Vconsyst 2 1340*1340*2725 | D26: 5 | E26: Postjeskade 4, Amsterdam | F26: 523636349 | G26: 48525045 | H26: West
A27: 24 | B27: Rest | C27: 5M3 Rest 3HKZ OC Vconsyst | D27: 5 | E27: Postjeskade 4, Amsterdam | F27: 523636404 | G27: 4852547 | H27: West
A28: 25 | B28: Rest | C28: 5m3 KHC Rest Amsterdam Standaard 1192*1192*2341 | D28: 5 | E28: Bijlmerdreef 867, Amsterdam | F28: 523200233 | G28: 49666617 | H28: Zuidoost
A29: 26 | B29: Papier | C29: Zuid Oost stadsdeel Metro Papier 5m3 | D29: 4 | E29: Tulastraat 9, Amsterdam | F29: 523196133 | G29: 49661185 | H29: Zuidoost
A30: 27 | B30: Glas 1 | C30: Zuid Oost stadsdeel Metro Glas 1 4m3 | D30: 4 | E30: Tulastraat 9, Amsterdam | F30: 523196264 | G30: 49661069 | H30: Zuidoost
A31: 28 | B31: Rest | C31: 5m3 KHC Rest Amsterdam Standaard 1192*1192*2341 | D31: 5 | E31: Tulastraat 49, 1103TE Amsterdam | F31: 5231834 | G31: 496652 | H31: Zuidoost
A32: 29 | B32: Rest | C32: 5m3 KHC Rest Amsterdam Standaard 1192*1192*2341 | D32: 5 | E32: Bijlmerdreef 1136, 1103JV Amsterdam | F32: 5232186 | G32: 49709 | H32: Zuidoost
A33: 30 | B33: Rest | C33: 5m3 KHC Rest Amsterdam Standaard 1192*1192*2341 | D33: 5 | E33: Annie Romeinplein 36, 1103JL Amsterdam | F33: 523223 | G33: 497031 | H33: Zuidoost
A34: 31 | B34: Rest | C34: 5m3 KHC Rest Amsterdam Standaard 1380*1380*2690 | D34: 5 | E34: Gravestein 11, Amsterdam | F34: 5.232329946e+16 | G34: 4968795888125890 | H34: Zuidoost
A35: 32 | B35: Rest | C35: 5m3 KHC Rest Amsterdam Standaard 1380*1380*2690 | D35: 5 | E35: Gravestein 9, Amsterdam | F35: 5232329588194580 | G35: 4968825828300390 | H35: Zuidoost
A36: 33 | B36: Rest | C36: 5m3 KHC Rest Amsterdam Standaard 1380*1380*2690 | D36: 5 | E36: Gravestein 25C, 1103BH Amsterdam | F36: 5232388 | G36: 496825 | H36: Zuidoost
A37: 34 | B37: Rest | C37: 5m3 KHC Rest Amsterdam Standaard 1380*1380*2690 | D37: 5 | E37: Gravestein 25C, 1103BH Amsterdam | F37: 5232388 | G37: 496825 | H37: Zuidoost
A38: 35 | B38: Rest | C38: 5m3 KHC Rest Amsterdam Standaard 1380*1380*2690 | D38: 5 | E38: Geldershoofd 10, 1103BG Amsterdam | F38: 52323 | G38: 497026 | H38: Zuidoost
A39: 36 | B39: Rest | C39: 5m3 KHC Rest Amsterdam Standaard 1380*1380*2690 | D39: 5 | E39: Geldershoofd 10, 1103BG Amsterdam | F39: 52323 | G39: 497026 | H39: Zuidoost
A40: 37 | B40: Plastic | C40: ONBEKEND | D40: n.t.b. | E40: Gravestein | F40: 5232446 | G40: 496854 | H40: Zuidoost
A41: 38 | B41: Plastic | C41: ONBEKEND | D41: n.t.b. | E41: Geldershoofd / flat | F41: 5232345 | G41: 497073 | H41: Zuidoost
A42: 39 | B42: Rest | C42: 5m3 KHC Rest Amsterdam Standaard 1380*1380*2690 | D42: 5 | E42: Geldershoofd 21, 1103BG Amsterdam | F42: 5232347 | G42: 497066 | H42: Zuidoost
A43: 40 | B43: Rest | C43: 5m3 KHC Rest Amsterdam Standaard 1380*1380*2690 | D43: 5 | E43: Geldershoofd 21, 1103BG Amsterdam | F43: 5232347 | G43: 497066 | H43: Zuidoost
A44: 41 | B44: Rest | C44: 5m3 KHC Rest Amsterdam Standaard 1380*1380*2690 | D44: 5 | E44: Patrice lumumbastraat 7, 1102BA Amsterdam | F44: 5231874 | G44: 49577 | H44: Zuidoost
A45: 42 | B45: Rest | C45: Zuidoost Stadsdeel Kliko Rest 5m3 | D45: 5 | E45: Florijn Noord 3 39a, Amsterdam, Nederland | F45: 5.232054686e+16 | G45: 4957730770111080 | H45: Zuidoost
A46: 43 | B46: Rest | C46: 5m3 KHC Rest Amsterdam Standaard 1380*1380*2690 | D46: 5 | E46: Florijn 323, 1102BA Amsterdam | F46: 5232023 | G46: 495798 | H46: Zuidoost
A47: 44 | B47: Rest | C47: 5m3 KHC Rest Amsterdam Standaard 1192*1192*2341 | D47: 5 | E47: Lampenistenstraat 135, Amsterdam | F47: 5237323109952570 | G47: 4.942865744e+16 | H47: Oost
A48: 45 | B48: Rest | C48: 5m3 KHC Rest Amsterdam Standaard 1192*1192*2341 | D48: 5 | E48: Lampenistenstraat 29, Amsterdam | F48: 5237363215597520 | G48: 4946404360221090 | H48: Oost
A49: 46 | B49: Rest | C49: 5m3 KHC Rest Amsterdam Standaard 1192*1192*2341 | D49: 5 | E49: Lampenistenstraat 29, Amsterdam | F49: 5237363932010130 | G49: 4946430567645160 | H49: Oost
A50: 47 | B50: Rest | C50: 5m3 KHC Rest Amsterdam Standaard 1192*1192*2341 | D50: 5 | E50: Baron G.A. Tindalplein 31, Amsterdam | F50: 5237320298859100 | G50: 49421906098587 | H50: Oost
A51: 48 | B51: Rest | C51: 5m3 KHC Rest Amsterdam Standaard 1192*1192*2341 | D51: 5 | E51: Blauwdasstraat 7, Amsterdam | F51: 523179986 | G51: 49605913 | H51: Zuidoost
A52: 49 | B52: Plastic | C52: ONBEKEND | D52: n.t.b. | E52: Troepiaalsingel 8, Amsterdam | F52: 5231675170368050 | G52: 4.958975483e+16 | H52: Zuidoost
A53: 50 | B53: Rest | C53: 5m3 KHC Rest Amsterdam Standaard 1192*1192*2341 | D53: 5 | E53: Panamakade 130, Amsterdam | F53: 5237285835528990 | G53: 4.943544511e+16 | H53: Oost
A54: 51 | B54: Rest | C54: 5m3 KHC Rest Amsterdam Standaard 1192*1192*2341 | D54: 5 | E54: Panamakade 88, Amsterdam | F54: 5237304687706910 | G54: 4945346787544620 | H54: Oost
A55: 52 | B55: Papier | C55: Zuid Oost stadsdeel Metro Papier 5m3 | D55: 4 | E55: Troepiaalsingel 8, Amsterdam | F55: 5231660560054820 | G55: 4959109690753390 | H55: Zuidoost
A56: 53 | B56: Glas 1 | C56: Zuid Oost stadsdeel Metro Glas 1 4m3 | D56: 4 | E56: Troepiaalsingel 8, Amsterdam | F56: 5231662839813190 | G56: 4959102434042960 | H56: Zuidoost
A57: 54 | B57: KCA | C57: Blipvert | D57: n.t.b. | E57: Gulden Winckelplantsoen 2 | F57: 52378464507545 | G57: 48475790997701 | H57: West
A58: 55 | B58: KCA | C58: Blipvert | D58: n.t.b. | E58: Columbusplein 249 | F58: 52365735804212 | G58: 48549371002681 | H58: West
A59: 56 | B59: KCA | C59: Blipvert | D59: n.t.b. | E59: Jan van Galenstraat 103 | F59: 52374697304997 | G59: 48606983889646 | H59: West
A60: 57 | B60: KCA | C60: Blipvert | D60: n.t.b. | E60: Kinkerstraat 303 | F60: 52364760104176 | G60: 48629904978134 | H60: West
A61: 58 | B61: KCA | C61: Blipvert | D61: n.t.b. | E61: Bilderdijkstraat 108 | F61: 52368670703825 | G61: 48709182010481 | H61: West
A62: 59 | B62: KCA | C62: Blipvert | D62: n.t.b. | E62: Silodam 19 | F62: 52390207206867 | G62: 48915313881858 | H62: West
A63: 60 | B63: KCA | C63: Blipvert | D63: n.t.b. | E63: Spaarndammerstraat 544 | F63: 523892787018336 | G63: 487962886691094 | H63: West
A64: 61 | B64: KCA | C64: Blipvert | D64: n.t.b. | E64: Van Hallstraat 34 | F64: 523821558252887 | G64: 487069442868233 | H64: West
A65: 62 | B65: KCA | C65: Blipvert | D65: n.t.b. | E65: Frederik Hendrikstraat 7 | F65: 523774365527384 | G65: 487469628453255 | H65: West
A66: 63 | B66: KCA | C66: Blipvert | D66: n.t.b. | E66: Jan Evertsenstraat 116 | F66: 523705050063358 | G66: 485253000631929 | H66: West
A67: 64 | B67: Textiel | C67: Bovengronds Textiel Symphanie | D67: 3 | E67: Sierenborch 10, Amsterdam | F67: 5239044582068810 | G67: 4804141446948050 | H67: Nieuw-West
A68: 65 | B68: Textiel | C68: Bovengronds Textiel Symphanie | D68: 3 | E68: Bolstoen 1, Amsterdam | F68: 5.239171357e+16 | G68: 4788188338279720 | H68: Nieuw-West
A69: 66 | B69: Rest | C69: 5m3 KHC Rest Amsterdam Standaard 1380*1380*2690 | D69: 5 | E69: Fleerde, Amsterdam | F69: 523175902 | G69: 49553217 | H69: Zuidoost
A70: 67 | B70: Plastic | C70: ONBEKEND | D70: n.t.b. | E70: Claus van Amsbergstraat(plastic | F70: 523172 | G70: 495451 | H70: Zuidoost
A71: 68 | B71: Rest | C71: 5m3 KHC Rest Amsterdam Standaard 1192*1192*2341 | D71: 5 | E71: Marguerite Yourcenarstraat 1, Amsterdam | F71: 523236186 | G71: 49505263 | H71: Zuidoost
A72: 69 | B72: Papier | C72: 5m3 KHC Papier Amsterdam Standaard 1380*1380*2690 | D72: 5 | E72: George Sandstraat 1, Amsterdam | F72: 5232381190272180 | G72: 4951244965188830 | H72: Zuidoost
A73: 70 | B73: Plastic | C73: 5m3 KHC Glas Amsterdam Standaard 1338*1338*2619 | D73: 5 | E73: Gulden Winckelstraat 15, Amsterdam | F73: 523803704 | G73: 4846917 | H73: West
A74: 71 | B74: Papier | C74: 5m3 KHC Papier Amsterdam Standaard 1338*1338*2619 | D74: 5 | E74: Gulden Winckelstraat 15, Amsterdam | F74: 523803526 | G74: 48469186 | H74: West
A75: 72 | B75: Rest | C75: 5m3 KHC Rest Amsterdam Standaard 1338*1338*2619 | D75: 5 | E75: Gulden Winckelstraat 15, Amsterdam | F75: 523803351 | G75: 48469195 | H75: West
A76: 73 | B76: Rest | C76: 5m3 KHC Rest Amsterdam Standaard 1338*1338*2619 | D76: 5 | E76: Gulden Winckelstraat 13, Amsterdam | F76: 523803174 | G76: 48469204 | H76: West
A77: 74 | B77: Rest | C77: Zuidoost Stadsdeel Kliko Rest 5m3 | D77: 5 | E77: Dennenrodepad 275, Amsterdam Zuid-Oost, Nederland | F77: 5232233309999990 | G77: 4953297499999960 | H77: Zuidoost
A78: 75 | B78: Rest | C78: Zuidoost Stadsdeel Kliko Rest 5m3 | D78: 5 | E78: Dennenrodepad 275, Amsterdam Zuid-Oost, Nederland | F78: 5232233309999990 | G78: 4953297499999960 | H78: Zuidoost
A79: 76 | B79: Plastic | C79: 5m3 KHC Plastic Amsterdam Standaard 1380*1380*2690 | D79: 5 | E79: Dennenrodepad 275, Amsterdam | F79: 523215236 | G79: 49530143 | H79: Zuidoost
A80: 77 | B80: Rest | C80: Zuidoost Stadsdeel Kliko Rest 5m3 | D80: 5 | E80: Dennenrodepad 275, Amsterdam | F80: 5232145102298190 | G80: 4.952962808e+16 | H80: Zuidoost
A81: 78 | B81: Rest | C81: 5 m3 KH Rest Bammens Downcost | D81: 5 | E81: Frederik Hendrikstraat 103, Amsterdam | F81: 523751389 | G81: 487319 | H81: West
A82: 79 | B82: Plastic | C82: 5m3 KHC Plastic Amsterdam Standaard 1380*1380*2690 | D82: 5 | E82: Daalwijk 407, Amsterdam | F82: 5232077148104450 | G82: 4951035553958710 | H82: Zuidoost
A83: 80 | B83: Glas 1 | C83: 5m3 KHC Glas Amsterdam Standaard 1380*1380*2690 | D83: 5 | E83: Daalwijk 407, Amsterdam | F83: 5232080316283480 | G83: 495102060969657 | H83: Zuidoost
A84: 81 | B84: Papier | C84: 5m3 KHC Papier Amsterdam Standaard 1380*1380*2690 | D84: 5 | E84: Daalwijk 407, Amsterdam | F84: 5.232084606e+16 | G84: 4950984679162500 | H84: Zuidoost
A85: 82 | B85: Rest | C85: 5m3 KHC Rest Amsterdam Standaard 1192*1192*2341 | D85: 5 | E85: Daalwijk 204, Amsterdam | F85: 5232088152669420 | G85: 4950946129119980 | H85: Zuidoost
A86: 83 | B86: Rest | C86: 5m3 KHC Rest Amsterdam Standaard 1192*1192*2341 | D86: 5 | E86: Daalwijk 407, Amsterdam | F86: 5232086305171010 | G86: 4950963080342490 | H86: Zuidoost
A87: 84 | B87: Rest | C87: 5m3 KHC Rest Amsterdam Standaard 1192*1192*2341 | D87: 5 | E87: Daalwijk 104, Amsterdam | F87: 5.232090161e+16 | G87: 4950928136861420 | H87: Zuidoost
A88: 85 | B88: Rest | C88: 5m3 KHC Rest Amsterdam Standaard 1338*1338*2619 | D88: 5 | E88: Admiraal De Ruijterweg 187, Amsterdam | F88: 523756527 | G88: 48581594 | H88: West
A89: 86 | B89: Rest | C89: 5m3 KHC Rest Amsterdam Standaard 1192*1192*2341 | D89: 5 | E89: Chestertonlaan 72, 1102ZA Amsterdam | F89: 5232537 | G89: 494615 | H89: Zuidoost
A90: 87 | B90: Rest | C90: BAUER 3M3 Rest Bovengrondse | D90: 3 | E90: Camperstraat 76, Amsterdam | F90: 5235742392833770 | G90: 4913908168673510 | H90: Oost
A91: 88 | B91: Rest | C91: 5m3 KHC Rest Amsterdam Standaard 1192*1192*2341 | D91: 5 | E91: Chestertonlaan 178, Amsterdam | F91: 523242429 | G91: 49472104 | H91: Zuidoost
A92: 89 | B92: Rest | C92: 5m3 KHC Rest Amsterdam Standaard 1192*1192*2341 | D92: 5 | E92: Daniël Defoelaan 164, Amsterdam | F92: 523247766 | G92: 49485905 | H92: Zuidoost
A93: 90 | B93: Rest | C93: 5m3 KHC Rest Amsterdam Standaard 1192*1192*2341 | D93: 5 | E93: Daniël Defoelaan 72, Amsterdam | F93: 523258725 | G93: 49475872 | H93: Zuidoost
A94: 91 | B94: Rest | C94: 5m3 KHC Rest Amsterdam Standaard 1192*1192*2341 | D94: 5 | E94: Charlotte Brontéstraat 273, Amsterdam | F94: 523251368 | G94: 49471723 | H94: Zuidoost
A95: 92 | B95: Rest | C95: 5m3 KHC Rest Amsterdam Standaard 1192*1192*2341 | D95: 5 | E95: Charlotte Brontéstraat 100, Amsterdam | F95: 52324674 | G95: 4946095 | H95: Zuidoost
A96: 93 | B96: Rest | C96: 5m3 KHC Rest Amsterdam Standaard 1192*1192*2341 | D96: 5 | E96: Dostojevskisingel 273, Amsterdam | F96: 523245748 | G96: 49497627 | H96: Zuidoost
A97: 94 | B97: Rest | C97: 5m3 KHC Rest Amsterdam Standaard 1192*1192*2341 | D97: 5 | E97: Dantestraat 34, Amsterdam | F97: 523264664 | G97: 49489031 | H97: Zuidoost
A98: 95 | B98: Rest | C98: 5m3 KHC Rest Amsterdam Standaard 1192*1192*2341 | D98: 5 | E98: Dalsteindreef 418, Amsterdam | F98: 523268084 | G98: 49481152 | H98: Zuidoost
A99: 96 | B99: Rest | C99: 5m3 KHC Rest Amsterdam Standaard 1192*1192*2341 | D99: 5 | E99: Dalsteindreef 258, Amsterdam | F99: 523262006 | G99: 49463495 | H99: Zuidoost
A100: 97 | B100: Rest | C100: 5m3 KHC Rest Amsterdam Standaard 1192*1192*2341 | D100: 5 | E100: Dostojevskisingel 29, Amsterdam | F100: 523231024 | G100: 49454743 | H100: Zuidoost
A101: 98 | B101: Plastic | C101: ONBEKEND | D101: n.t.b. | E101: Dostojevskisingel 21, Amsterdam | F101: 523230567 | G101: 49456592 | H101: Zuidoost
A102: 99 | B102: Glas 1 | C102: Oost stadsdeel Rubens Papier KH 5m3 | D102: 5 | E102: Voltaplein 7, Amsterdam | F102: 523535160309335 | G102: 4941016361990470 | H102: Oost
A103: 100 | B103: Glas 1 | C103: Zuid Oost stadsdeel Metro Glas 1 4m3 | D103: 4 | E103: Dostojevskisingel 21, Amsterdam | F103: 523230319 | G103: 49455934 | H103: Zuidoost
A104: 101 | B104: Papier | C104: Zuid Oost stadsdeel Metro Papier 5m3 | D104: 4 | E104: Dostojevskisingel 29, Amsterdam | F104: 523230245 | G104: 49455715 | H104: Zuidoost
A105: 102 | B105: Glas 1 | C105: Oost stadsdeel Rubens Papier KH 5m3 | D105: 5 | E105: Rutherfordstraat 9, Amsterdam | F105: 5.235243477e+16 | G105: 4944729767739770 | H105: Oost
A106: 103 | B106: Rest | C106: 5m3 KHC Rest Amsterdam Standaard 1192*1192*2341 | D106: 5 | E106: Dickenslaan 156, Amsterdam | F106: 523238246 | G106: 49457637 | H106: Zuidoost
A107: 104 | B107: Rest | C107: 5m3 KHC Rest Amsterdam Standaard 1192*1192*2341 | D107: 5 | E107: Charlotte Brontéstraat 18, Amsterdam | F107: 523241124 | G107: 49444583 | H107: Zuidoost
A108: 105 | B108: Plastic | C108: MCB Bovengrondse Plastic | D108: 4 | E108: Galileïplantsoen 109, Amsterdam | F108: 5.235514279e+16 | G108: 4940971657633780 | H108: Oost
A109: 106 | B109: Glas 1 | C109: Oost stadsdeel Rubens Papier KH 5m3 | D109: 5 | E109: Galileïplantsoen 109, Amsterdam | F109: 5235518538675340 | G109: 4941046424210070 | H109: Oost
A110: 107 | B110: Rest | C110: 5m3 KHC Rest Amsterdam Standaard 1192*1192*2341 | D110: 5 | E110: Dickenslaan 72, 1102ZV Amsterdam | F110: 5232491 | G110: 494476 | H110: Zuidoost
A111: 108 | B111: Rest | C111: 5m3 KHC Rest Amsterdam Standaard 1192*1192*2341 | D111: 5 | E111: Sumatrastraat 235, Amsterdam | F111: 5235956243643390 | G111: 4943669959902760 | H111: Oost
A112: 109 | B112: Rest | C112: 5m3 KHC Rest Amsterdam Standaard 1192*1192*2341 | D112: 5 | E112: Sumatrastraat 235, Amsterdam | F112: 5.235956858e+16 | G112: 4943700470030300 | H112: Oost
A113: 110 | B113: Rest | C113: 5m3 KHC Rest Amsterdam Standaard 1192*1192*2341 | D113: 5 | E113: Sumatrastraat 238, Amsterdam | F113: 5235950046395150 | G113: 4943745453019800 | H113: Oost
A114: 111 | B114: Rest | C114: 5m3 KHC Rest Amsterdam Standaard 1192*1192*2341 | D114: 5 | E114: Sumatrastraat 238, Amsterdam | F114: 5.235949487e+16 | G114: 4943716563284390 | H114: Oost
A115: 112 | B115: Rest | C115: 5m3 KHC Rest Amsterdam Standaard 1192*1192*2341 | D115: 5 | E115: Dalsteindreef 164, Amsterdam | F115: 523257019 | G115: 49448955 | H115: Zuidoost
A116: 113 | B116: Rest | C116: 5m3 KHC Rest Amsterdam Standaard 1192*1192*2341 | D116: 5 | E116: Dalsteindreef 50, Amsterdam | F116: 523252298 | G116: 49435197 | H116: Zuidoost
A117: 114 | B117: Rest | C117: 5m3 KHC Rest Amsterdam Standaard 1192*1192*2341 | D117: 5 | E117: Dolingadreef 185, Amsterdam | F117: 523234978 | G117: 49444561 | H117: Zuidoost
A118: 115 | B118: Rest | C118: 5m3 KHC Rest Amsterdam Standaard 1192*1192*2341 | D118: 5 | E118: Dolingadreef 49, Amsterdam | F118: 523246329 | G118: 49434194 | H118: Zuidoost
A119: 116 | B119: Textiel | C119: Bovengronds Textiel Symphanie | D119: 3 | E119: Haarlemmerplein 4 | F119: 52385049 | G119: 4883716 | H119: Centrum
A120: 117 | B120: Textiel | C120: Bovengronds Textiel Symphanie | D120: 3 | E120: Hoogte Kadijk 412 | F120: 52368325 | G120: 4918235 | H120: Centrum
A121: 118 | B121: Textiel | C121: Bovengronds Textiel Symphanie | D121: 3 | E121: Kleine Wittenburgerstraat 20 | F121: 52370457 | G121: 4920416 | H121: Centrum
A122: 119 | B122: Textiel | C122: Bovengronds Textiel Symphanie | D122: 3 | E122: Korte Prinsengracht 32 | F122: 52380957 | G122: 4889152 | H122: Centrum
A123: 120 | B123: Textiel | C123: Bovengronds Textiel Symphanie | D123: 3 | E123: Plantage Middenlaan 1 | F123: 52367206 | G123: 4909331 | H123: Centrum
A124: 121 | B124: Textiel | C124: Bovengronds Textiel Symphanie | D124: 3 | E124: Sarphatistraat 204 | F124: 52362138 | G124: 4912931 | H124: Centrum
A125: 122 | B125: Textiel | C125: Bovengronds Textiel Symphanie | D125: 3 | E125: Weesperstraat 388 | F125: 52363988 | G125: 4906176 | H125: Centrum
A126: 123 | B126: Textiel | C126: Bovengronds Textiel Symphanie | D126: 3 | E126: Jodenbreestraat 158 | F126: 52369076 | G126: 4902429 | H126: Centrum
A127: 124 | B127: Textiel | C127: Bovengronds Textiel Symphanie | D127: 3 | E127: Marnixstraat 215 | F127: 52378129 | G127: 4878615 | H127: Centrum
A128: 125 | B128: Textiel | C128: Bovengronds Textiel Symphanie | D128: 3 | E128: Westerdok 15 | F128: 52384069 | G128: 4891353 | H128: Centrum
A129: 126 | B129: Textiel | C129: Bovengronds Textiel Symphanie | D129: 3 | E129: Raamplein 1 | F129: 5236643 | G129: 4879852 | H129: Centrum
A130: 127 | B130: Textiel | C130: Bovengronds Textiel Symphanie | D130: 3 | E130: Eerste Weteringplantsoen 56 | F130: 52359284 | G130: 4890108 | H130: Centrum
A131: 128 | B131: Textiel | C131: Bovengronds Textiel Symphanie | D131: 3 | E131: Amstelveld 1 | F131: 5236186 | G131: 4896438 | H131: Centrum
A132: 129 | B132: Textiel | C132: Bovengronds Textiel Symphanie | D132: 3 | E132: Frederiksplein 54 | F132: 52359606 | G132: 4898527 | H132: Centrum
A133: 130 | B133: Textiel | C133: Bovengronds Textiel Symphanie | D133: 3 | E133: Cornelis Schuytstraat 1 | F133: 52356552 | G133: 487035 | H133: Zuid
A134: 131 | B134: Textiel | C134: Bovengronds Textiel Symphanie | D134: 3 | E134: Arent Janszoon Ernststraat 185 | F134: 52332226 | G134: 4884592 | H134: Zuid
A135: 132 | B135: Textiel | C135: Bovengronds Textiel Symphanie | D135: 3 | E135: Willem van Weldammelaan 7 | F135: 52331977 | G135: 4875752 | H135: Zuid
A136: 133 | B136: Textiel | C136: Bovengronds Textiel Symphanie | D136: 3 | E136: Bolestein 39 | F136: 52326569 | G136: 4859542 | H136: Zuid
A137: 134 | B137: Textiel | C137: Bovengronds Textiel Symphanie | D137: 3 | E137: Buitenveldertselaan 28 | F137: 52330718 | G137: 4868488 | H137: Zuid
A138: 135 | B138: Textiel | C138: Bovengronds Textiel Symphanie | D138: 3 | E138: Kastelenstraat 70 | F138: 52326271 | G138: 4883429 | H138: Zuid
A139: 136 | B139: Textiel | C139: Bovengronds Textiel Symphanie | D139: 3 | E139: Rooswijck 84 | F139: 52325374 | G139: 4866347 | H139: Zuid
A140: 137 | B140: Textiel | C140: Bovengronds Textiel Symphanie | D140: 3 | E140: Willem van Weldammelaan 12 | F140: 52330533 | G140: 4875345 | H140: Zuid
A141: 138 | B141: Textiel | C141: Bovengronds Textiel Symphanie | D141: 3 | E141: Zuid-Hollandstraat 152 | F141: 52326288 | G141: 4874554 | H141: Zuid
A142: 139 | B142: Textiel | C142: Bovengronds Textiel Symphanie | D142: 3 | E142: Beethovenstraat 178 | F142: 52343377 | G142: 4876235 | H142: Zuid
A143: 140 | B143: Textiel | C143: Bovengronds Textiel Symphanie | D143: 3 | E143: Churchill-laan 165 | F143: 52347053 | G143: 4890846 | H143: Zuid
A144: 141 | B144: Textiel | C144: Bovengronds Textiel Symphanie | D144: 3 | E144: Niersstraat 9 | F144: 52343433 | G144: 4895235 | H144: Zuid
A145: 142 | B145: Textiel | C145: Bovengronds Textiel Symphanie | D145: 3 | E145: Moerdijkstraat 56 II | F145: 5234109 | G145: 4901071 | H145: Zuid
A146: 143 | B146: Textiel | C146: Bovengronds Textiel Symphanie | D146: 3 | E146: Churchill-laan 1 | F146: 52346324 | G146: 4902661 | H146: Zuid
A147: 144 | B147: Textiel | C147: Bovengronds Textiel Symphanie | D147: 3 | E147: Meerhuizenplein 12 | F147: 52347915 | G147: 4907085 | H147: Zuid
A148: 145 | B148: Textiel | C148: Bovengronds Textiel Symphanie | D148: 3 | E148: Trompenburgstraat 111 | F148: 52343977 | G148: 4906966 | H148: Zuid
A149: 146 | B149: Textiel | C149: Bovengronds Textiel Symphanie | D149: 3 | E149: Veluwelaan 21 | F149: 52338956 | G149: 4897093 | H149: Zuid
A150: 147 | B150: Textiel | C150: Bovengronds Textiel Symphanie | D150: 3 | E150: Pr. Marijkestraat 3 | F150: 52344096 | G150: 4872618 | H150: Zuid
A151: 148 | B151: Textiel | C151: Bovengronds Textiel Symphanie | D151: 3 | E151: Willem Pijperstraat 48 | F151: 52342424 | G151: 4869273 | H151: Zuid
A152: 149 | B152: Textiel | C152: Bovengronds Textiel Symphanie | D152: 3 | E152: President Kennedyplantsoen 1 | F152: 5234087 | G152: 4900681 | H152: Zuid
A153: 150 | B153: Textiel | C153: Bovengronds Textiel Symphanie | D153: 3 | E153: Frieslandstraat 127 | F153: 52333378 | G153: 4876853 | H153: Zuid
A154: 151 | B154: Textiel | C154: Bovengronds Textiel Symphanie | D154: 3 | E154: Hunzestraat 139 | F154: 52340741 | G154: 4904627 | H154: Zuid
A155: 152 | B155: Textiel | C155: Bovengronds Textiel Symphanie | D155: 3 | E155: Aalsmeerplein 1 | F155: 52346816 | G155: 484708 | H155: Zuid
A156: 153 | B156: Textiel | C156: Bovengronds Textiel Symphanie | D156: 3 | E156: Sophialaan 38 | F156: 52352382 | G156: 4856443 | H156: Zuid
A157: 154 | B157: Textiel | C157: Bovengronds Textiel Symphanie | D157: 3 | E157: Woestduinstraat 74 | F157: 52352187 | G157: 4847642 | H157: Zuid
A158: 155 | B158: Textiel | C158: Bovengronds Textiel Symphanie | D158: 3 | E158: Bernard Kochstraat 13 | F158: 52349133 | G158: 4859246 | H158: Zuid
A159: 156 | B159: Textiel | C159: Bovengronds Textiel Symphanie | D159: 3 | E159: Ceintuurbaan 229 | F159: 52355407 | G159: 4902985 | H159: Zuid
A160: 157 | B160: Textiel | C160: Bovengronds Textiel Symphanie | D160: 3 | E160: Emmastraat 44 | F160: 52352458 | G160: 4870256 | H160: Zuid
A161: 158 | B161: Textiel | C161: Bovengronds Textiel Symphanie | D161: 3 | E161: Gerard Terborgstraat 2 | F161: 5235145 | G161: 4885934 | H161: Zuid
A162: 159 | B162: Textiel | C162: Bovengronds Textiel Symphanie | D162: 3 | E162: Hygiëaplein 1 | F162: 52347457 | G162: 4863559 | H162: Zuid
A163: 160 | B163: Textiel | C163: Bovengronds Textiel Symphanie | D163: 3 | E163: Johannes Vermeerstraat 55 | F163: 5235587 | G163: 4884018 | H163: Zuid
A164: 161 | B164: Textiel | C164: Bovengronds Textiel Symphanie | D164: 3 | E164: Michelangelostraat 27 | F164: 52348963 | G164: 4871294 | H164: Zuid
A165: 162 | B165: Textiel | C165: Bovengronds Textiel Symphanie | D165: 3 | E165: Quellijnstraat 92 | F165: 52356669 | G165: 4891685 | H165: Zuid
A166: 163 | B166: Textiel | C166: Bovengronds Textiel Symphanie | D166: 3 | E166: Minervaplein 37 | F166: 52346312 | G166: 4872476 | H166: Zuid
A167: 164 | B167: Textiel | C167: Bovengronds Textiel Symphanie | D167: 3 | E167: Reijnier Vinkeleskade 48 | F167: 52351431 | G167: 4879203 | H167: Zuid
A168: 165 | B168: Textiel | C168: Bovengronds Textiel Symphanie | D168: 3 | E168: Jasonstraat 21 | F168: 52344377 | G168: 4859884 | H168: Zuid
A169: 166 | B169: Textiel | C169: Bovengronds Textiel Symphanie | D169: 3 | E169: Theophile de Bockstraat 71 | F169: 52354864 | G169: 4847614 | H169: Zuid
A170: 167 | B170: Textiel | C170: Bovengronds Textiel Symphanie | D170: 3 | E170: Van Woustraat 210 | F170: 52350672 | G170: 4903579 | H170: Zuid
A171: 168 | B171: Textiel | C171: Bovengronds Textiel Symphanie | D171: 3 | E171: Albert Neuhuysstraat 34 | F171: 52355554 | G171: 4850084 | H171: Zuid
A172: 169 | B172: Textiel | C172: Bovengronds Textiel Symphanie | D172: 3 | E172: Legmeerplein 6 | F172: 52353309 | G172: 4851327 | H172: Zuid
A173: 170 | B173: Textiel | C173: Bovengronds Textiel Symphanie | D173: 3 | E173: Oranje Nassaulaan 79 | F173: 52354513 | G173: 4856424 | H173: Zuid
A174: 171 | B174: Textiel | C174: Bovengronds Textiel Symphanie | D174: 3 | E174: Johannes Verhulststraat 172 | F174: 52353362 | G174: 4867963 | H174: Zuid
A175: 172 | B175: Textiel | C175: Bovengronds Textiel Symphanie | D175: 3 | E175: Moreelsestraat 3 | F175: 52355398 | G175: 4880629 | H175: Zuid
A176: 173 | B176: Textiel | C176: Bovengronds Textiel Symphanie | D176: 3 | E176: Henrick de Keijserplein 18 | F176: 52351034 | G176: 4897857 | H176: Zuid
A177: 174 | B177: Textiel | C177: Bovengronds Textiel Symphanie | D177: 3 | E177: Stadionweg 334 | F177: 52345658 | G177: 4858256 | H177: Zuid
A178: 175 | B178: Textiel | C178: Bovengronds Textiel Symphanie | D178: 3 | E178: Eosstraat 37 | F178: 52346124 | G178: 485591 | H178: Zuid
A179: 176 | B179: Textiel | C179: Bovengronds Textiel Symphanie | D179: 3 | E179: Cornelis Trooststraat 68 | F179: 52350473 | G179: 4890137 | H179: Zuid
A180: 177 | B180: Textiel | C180: Bovengronds Textiel Symphanie | D180: 3 | E180: Karperweg 3 | F180: 52348914 | G180: 4857029 | H180: Zuid
A181: 178 | B181: Textiel | C181: Bovengronds Textiel Symphanie | D181: 3 | E181: Watteaustraat 36 | F181: 52344961 | G181: 4868924 | H181: Zuid
A182: 179 | B182: Textiel | C182: Bovengronds Textiel Symphanie | D182: 3 | E182: Händelstraat 1 | F182: 52348157 | G182: 4881534 | H182: Zuid
A183: 180 | B183: Textiel | C183: Bovengronds Textiel Symphanie | D183: 3 | E183: Gerrit van der Veenstraat 78 | F183: 52349035 | G183: 487679 | H183: Zuid
A184: 181 | B184: Textiel | C184: Bovengronds Textiel Symphanie | D184: 3 | E184: Hemonylaan 19 | F184: 52357797 | G184: 4901598 | H184: Zuid
A185: 182 | B185: Textiel | C185: Bovengronds Textiel Symphanie | D185: 3 | E185: Emmaplein 12 | F185: 52354345 | G185: 4862634 | H185: Zuid
A186: 183 | B186: Textiel | C186: Bovengronds Textiel Symphanie | D186: 3 | E186: De Klencke 10 | F186: 52333508 | G186: 4886035 | H186: Zuid
A187: 184 | B187: Textiel | C187: Bovengronds Textiel Symphanie | D187: 3 | E187: Willem Passtoorsstraat 24 | F187: 52350164 | G187: 4897176 | H187: Zuid
A188: 185 | B188: Textiel | C188: Bovengronds Textiel Symphanie | D188: 3 | E188: Admiralengracht 170 | F188: 52368509 | G188: 4857754 | H188: West
A189: 186 | B189: Textiel | C189: Bovengronds Textiel Symphanie | D189: 3 | E189: Barentszplein 58 | F189: 52389404 | G189: 4891165 | H189: West
A190: 187 | B190: Textiel | C190: Bovengronds Textiel Symphanie | D190: 3 | E190: Bilderdijkkade 41 | F190: 52367827 | G190: 4870463 | H190: West
A191: 188 | B191: Textiel | C191: Bovengronds Textiel Symphanie | D191: 3 | E191: Bos en Lommerweg 258 | F191: 52378959 | G191: 4850231 | H191: West
A192: 189 | B192: Textiel | C192: Bovengronds Textiel Symphanie | D192: 3 | E192: Crynssenstraat 65 | F192: 52363727 | G192: 4856052 | H192: West
A193: 190 | B193: Textiel | C193: Bovengronds Textiel Symphanie | D193: 3 | E193: De Leeuw van Vlaanderenstraat 33 | F193: 52377169 | G193: 4842911 | H193: West
A194: 191 | B194: Textiel | C194: Bovengronds Textiel Symphanie | D194: 3 | E194: Derde Hugo De Grootstraat 3 | F194: 52373751 | G194: 4872054 | H194: West
A195: 192 | B195: Textiel | C195: Bovengronds Textiel Symphanie | D195: 3 | E195: Domela Nieuwenhuisstraat 1 | F195: 52386853 | G195: 4881095 | H195: West
A196: 193 | B196: Textiel | C196: Bovengronds Textiel Symphanie | D196: 3 | E196: Donker Curtiusstraat 1 | F196: 52381483 | G196: 4871033 | H196: West
A197: 194 | B197: Textiel | C197: Bovengronds Textiel Symphanie | D197: 3 | E197: Eerste Nassaustraat 2 | F197: 52382809 | G197: 4880157 | H197: West
A198: 195 | B198: Textiel | C198: Bovengronds Textiel Symphanie | D198: 3 | E198: Elckerlijcstraat 195 | F198: 52377298 | G198: 4847656 | H198: West
A199: 196 | B199: Textiel | C199: Bovengronds Textiel Symphanie | D199: 3 | E199: Gibraltarstraat 50 | F199: 52383686 | G199: 4851081 | H199: West
A200: 197 | B200: Textiel | C200: Bovengronds Textiel Symphanie | D200: 3 | E200: Hoofdweg 531 | F200: 52375927 | G200: 4846651 | H200: West
A201: 198 | B201: Textiel | C201: Bovengronds Textiel Symphanie | D201: 3 | E201: Jan van Galenstraat 265 | F201: 52373137 | G201: 4850398 | H201: West
... 4299 more rows

Sheet 6
A1: 6. Overzicht inzamelvoertuigen (bijgewerkt tot januari 2018)
A3: # | B3: Stadsdeel | C3: Merk | D3: Model | E3: Type | F3: Uitvoering | G3: Opbouw | H3: Inzamelfractie | I3: Inzamelmethode | J3: Weegsysteem | K3: Smal-/breedspoor
A4: 1 | B4: ASW | C4: Iveco | D4: 40 | E4: 40c13 euro 4 ld | F4: n.v.t. | G4: Koppen Sop Wagen | H4: Bruin en witgoed | I4: Grofvuil (klein) | J4: nee | K4: n.v.t.
A5: 2 | B5: ASW | C5: Iveco | D5: 35 | E5: 35c14d cng eev | F5: n.v.t. | G5: Web | H5: Bruin en witgoed | I5: Grofvuil (klein) | J5: nee | K5: n.v.t.
A6: 4 | B6: ASW | C6: Ginaf | D6: C | E6: 2121 N CNG | F6: Vuilnisvoertuig | G6: Achterlader | H6: Mini / grof klein / restzakken | I6: Handmatig | J6: nee | K6: smalspoor
A7: 6 | B7: ASW | C7: Ginaf | D7: C | E7: 3128 N euro 6 RHD | F7: Vuilnisvoertuig | G7: Trechter | H7: Restafval | I7: OAIS (Containers) | J7: Welvaarts | K7: smalspoor
A8: 8 | B8: ASW | C8: Ginaf | D8: C | E8: 3127 N | F8: Vuilnisvoertuig | G8: Trechter | H8: Restafval | I8: OAIS (Containers) | J8: nee | K8: smalspoor
A9: 9 | B9: ASW | C9: Ginaf | D9: C | E9: 3127 N | F9: Vuilnisvoertuig | G9: Trechter | H9: Restafval | I9: OAIS (Containers) | J9: nee | K9: smalspoor
A10: 10 | B10: ASW | C10: Ginaf | D10: C | E10: 3128 N euro 5 RHD | F10: Vuilnisvoertuig | G10: Trechter | H10: Kunststof | I10: OAIS (Containers) | J10: Welvaarts | K10: smalspoor
A11: 11 | B11: ASW | C11: Ginaf | D11: C | E11: 3127 N | F11: Vuilnisvoertuig | G11: Trechter | H11: Restafval | I11: OAIS (Containers) | J11: nee | K11: smalspoor
A12: 12 | B12: ASW | C12: Ginaf | D12: C | E12: 3127 N | F12: Vuilnisvoertuig | G12: Trechter | H12: Restafval | I12: OAIS (Containers) | J12: nee | K12: smalspoor
A13: 13 | B13: ASW | C13: Ginaf | D13: C | E13: 2121 N euro5 | F13: Vuilnisvoertuig | G13: Achterlader | H13: Mini / grof klein / restzakken | I13: Handmatig | J13: nee | K13: smalspoor
A14: 14 | B14: ASW | C14: Ginaf | D14: C | E14: 2121 N euro5 | F14: Vuilnisvoertuig | G14: Achterlader | H14: Mini / grof klein / restzakken | I14: Handmatig | J14: nee | K14: smalspoor
A15: 15 | B15: ASW | C15: Ginaf | D15: C | E15: 3128 N Euro5 6x2 | F15: Kraan Kipper | G15: Persende opbouw - Vossenbelt | H15: Papier | I15: OAIS (Containers) | J15: Welvaarts | K15: smalspoor
A16: 16 | B16: ASW | C16: Ginaf | D16: C | E16: 3128 N Euro5 6x2 | F16: Kraan Kipper | G16: Open container - Vossenbelt | H16: Glas | I16: OAIS (Containers) | J16: nee | K16: smalspoor
A17: 18 | B17: ASW | C17: Ginaf | D17: C | E17: 3128 N Euro5 6x2 | F17: Kraan Kipper | G17: Open container | H17: Grofvuil | I17: Grofvuil | J17: nee | K17: smalspoor
A18: 19 | B18: ASW | C18: Ginaf | D18: C | E18: 3128 N Euro5 6x2 | F18: Kraan Kipper | G18: Open container | H18: Grofvuil | I18: Grofvuil | J18: nee | K18: smalspoor
A19: 20 | B19: ASW | C19: Ginaf | D19: C | E19: 3128 N Euro5 6x2 | F19: Kraan Kipper | G19: Open container | H19: Grofvuil | I19: Grofvuil | J19: nee | K19: smalspoor
A20: 22 | B20: ASW | C20: Ginaf | D20: C | E20: 3127 N | F20: Vuilnisvoertuig | G20: Trechter | H20: Restafval | I20: OAIS (Containers) | J20: Welvaarts | K20: smalspoor
A21: 23 | B21: ASW | C21: Ginaf | D21: C | E21: 3127 N | F21: Vuilnisvoertuig | G21: Trechter | H21: Restafval | I21: OAIS (Containers) | J21: Welvaarts | K21: smalspoor
A22: 24 | B22: ASW | C22: Ginaf | D22: C | E22: 3127 N | F22: Vuilnisvoertuig | G22: Trechter | H22: Restafval | I22: OAIS (Containers) | J22: Welvaarts | K22: smalspoor
A23: 25 | B23: ASW | C23: Ginaf | D23: C | E23: 2121 N euro5 | F23: Vuilnisvoertuig | G23: Achterlader | H23: Mini / grof klein / restzakken | I23: Handmatig | J23: nee | K23: smalspoor
A24: 26 | B24: ASW | C24: Ginaf | D24: C | E24: 3127 N | F24: Vuilnisvoertuig | G24: Trechter | H24: Restafval | I24: OAIS (Containers) | J24: nee | K24: smalspoor
A25: 27 | B25: ASW | C25: Ginaf | D25: C | E25: 3127 N | F25: Vuilnisvoertuig | G25: Trechter | H25: Kunststof | I25: OAIS (Containers) | J25: Welvaarts | K25: smalspoor
A26: 28 | B26: ASW | C26: Ginaf | D26: C | E26: 3128 N Euro5 6x2 | F26: Kraan Kipper | G26: Open container | H26: Grofvuil | I26: Grofvuil | J26: nee | K26: smalspoor
A27: 29 | B27: ASW | C27: Ginaf | D27: C | E27: 3128 N Euro5 6x2 | F27: Kraan Kipper | G27: Open container | H27: Grofvuil | I27: Grofvuil | J27: nee | K27: smalspoor
A28: 30 | B28: ASW | C28: Ginaf | D28: C | E28: 3128 N Euro5 6x2 | F28: Kraan Kipper | G28: Open container | H28: Grofvuil | I28: Grofvuil | J28: nee | K28: smalspoor
A29: 31 | B29: ASW | C29: Ginaf | D29: C | E29: 3128 N Euro5 6x2 | F29: Kraan Kipper | G29: Open container | H29: Grofvuil | I29: Grofvuil | J29: nee | K29: smalspoor
A30: 32 | B30: Centrum | C30: DAF | D30: FA | E30: LF45.160.12 AutEuro5 | F30: Gesloten opbouw | G30: Gesloten Laadbak | H30: Bruin en witgoed | I30: Grofvuil (klein) | J30: nee | K30: smalspoor
A31: 33 | B31: Centrum | C31: DAF | D31: FAN | E31: CF75 250 | F31: Container Afzetsysteem | G31: Open container | H31: Rest / Glas / Papier | I31: OAIS (Containers) | J31: nee | K31: breedspoor
A32: 34 | B32: Centrum | C32: DAF | D32: FA | E32: LF45.160.12 AutEuro5 | F32: Kraan Kipper | G32: Open container | H32: Grofvuil | I32: Grofvuil | J32: nee | K32: smalspoor
A33: 35 | B33: Centrum | C33: DAF | D33: FA | E33: LF45.160.12 AutEuro5 | F33: Kraan Kipper | G33: Open container | H33: Grofvuil | I33: Grofvuil | J33: nee | K33: smalspoor
A34: 36 | B34: Centrum | C34: DAF | D34: FA | E34: LF45.160.12 AutEuro5 | F34: Kraan Kipper | G34: Open container | H34: Grofvuil | I34: Grofvuil | J34: nee | K34: smalspoor
A35: 38 | B35: Centrum | C35: Ginaf | D35: C | E35: 2121 N euro5 | F35: Vuilnisvoertuig | G35: Achterlader | H35: Restafval | I35: Handmatig | J35: nee | K35: smalspoor
A36: 39 | B36: Centrum | C36: Ginaf | D36: C | E36: 2121 N euro5 | F36: Vuilnisvoertuig | G36: Achterlader | H36: Restafval | I36: Handmatig | J36: nee | K36: smalspoor
A37: 40 | B37: Centrum | C37: Ginaf | D37: C | E37: 2121 N euro5 | F37: Vuilnisvoertuig | G37: Achterlader | H37: Restafval | I37: Handmatig | J37: nee | K37: smalspoor
A38: 41 | B38: Centrum | C38: Ginaf | D38: C | E38: 2121 N euro5 | F38: Vuilnisvoertuig | G38: Achterlader | H38: Restafval | I38: Handmatig | J38: nee | K38: smalspoor
A39: 42 | B39: Centrum | C39: Ginaf | D39: n.v.t. | E39: C2120N | F39: Vuilnisvoertuig | G39: Achterlader | H39: Restafval | I39: Handmatig | J39: nee | K39: smalspoor
A40: 43 | B40: Centrum | C40: DAF | D40: FAN | E40: CF75 250 | F40: Container Afzetsysteem | G40: Open container | H40: Rest / Glas / Papier | I40: OAIS (Containers) | J40: nee | K40: breedspoor
A41: 44 | B41: Centrum | C41: DAF | D41: FAN | E41: CF75 250 | F41: Container Afzetsysteem | G41: Open container | H41: Rest / Glas / Papier | I41: OAIS (Containers) | J41: nee | K41: breedspoor
A42: 45 | B42: Centrum | C42: DAF | D42: FAG | E42: 75CF 250 | F42: Vuilnisvoertuig | G42: Achterlader | H42: Restafval | I42: Handmatig | J42: nee | K42: breedspoor
A43: 47 | B43: Centrum | C43: DAF | D43: 55 | E43: FAG LF55.220 | F43: Vuilnisvoertuig | G43: Achterlader | H43: Restafval | I43: Handmatig | J43: nee | K43: smalspoor
A44: 48 | B44: Centrum | C44: DAF | D44: 55 | E44: FAG LF55.220 | F44: Vuilnisvoertuig | G44: Achterlader | H44: Restafval | I44: Handmatig | J44: nee | K44: smalspoor
A45: 49 | B45: Nieuw West | C45: DAF | D45: FAN | E45: CF 75 LHD | F45: Vuilnisvoertuig | G45: Trechter | H45: Restafval | I45: OAIS (Containers) | J45: Welvaarts | K45: breedspoor
A46: 50 | B46: Nieuw West | C46: DAF | D46: FAN | E46: CF 75 RHD | F46: Vuilnisvoertuig | G46: Trechter | H46: Restafval | I46: OAIS (Containers) | J46: Welvaarts | K46: breedspoor
A47: 51 | B47: Nieuw West | C47: DAF | D47: FAN | E47: CF 75 RHD | F47: Vuilnisvoertuig | G47: Trechter | H47: Restafval en papier | I47: OAIS (Containers) | J47: Welvaarts | K47: breedspoor
A48: 52 | B48: Nieuw West | C48: Ginaf | D48: C | E48: 3127 N | F48: Vuilnisvoertuig | G48: Trechter | H48: Restafval | I48: OAIS (Containers) | J48: nee | K48: smalspoor
A49: 53 | B49: Nieuw West | C49: DAF | D49: FAN | E49: CF75 6x2 bakwagen | F49: Vuilnisvoertuig | G49: Trechter | H49: Restafval | I49: OAIS (Containers) | J49: Welvaarts | K49: breedspoor
A50: 54 | B50: Nieuw West | C50: DAF | D50: FAN | E50: CF75 6x2 bakwagen | F50: Vuilnisvoertuig | G50: Trechter | H50: Restafval en papier | I50: OAIS (Containers) | J50: Welvaarts | K50: breedspoor
A51: 55 | B51: Nieuw West | C51: DAF | D51: FAG | E51: CF75.250 | F51: Vuilnisvoertuig | G51: Achterlader | H51: Mini / grof / rest /gft | I51: Handmatig | J51: nee | K51: breedspoor
A52: 56 | B52: Nieuw West | C52: Mercedes | D52: 513CDI | E52: Sprinter | F52: Kipper | G52: Open laadbak - Bruin / Wit / Clean | H52: Bruin en witgoed | I52: Grofvuil (klein) | J52: nee | K52: n.v.t.
A53: 57 | B53: Nieuw West | C53: DAF | D53: FAN | E53: CF290 6x2 | F53: Container Afzetsysteem | G53: Voorlader perscontainer | H53: Papier | I53: OAIS (Containers) | J53: Welvaarts | K53: breedspoor
A54: 58 | B54: Nieuw West | C54: DAF | D54: FAN | E54: LF 220 6x2 | F54: Kraan Kipper | G54: Open container | H54: Grofvuil | I54: Grofvuil | J54: nee | K54: smalspoor
A55: 59 | B55: Nieuw West | C55: DAF | D55: FAN | E55: LF 220 6x2 | F55: Kraan Kipper | G55: Open container | H55: Grofvuil | I55: Grofvuil | J55: nee | K55: smalspoor
A56: 60 | B56: Nieuw West | C56: DAF | D56: FAN | E56: LF 220 6x2 | F56: Kraan Kipper | G56: Open container | H56: Grofvuil | I56: Grofvuil | J56: nee | K56: smalspoor
A57: 61 | B57: Nieuw West | C57: DAF | D57: FAN | E57: CF 75 RHD | F57: Vuilnisvoertuig | G57: Trechter | H57: Restafval | I57: OAIS (Containers) | J57: Welvaarts | K57: breedspoor
A58: 62 | B58: Nieuw West | C58: Mercedes | D58: 906BA50 | E58: Sprinter | F58: Kipper | G58: Open laadbak - Bruin / Wit / Clean | H58: Bruin en witgoed | I58: Grofvuil (klein) | J58: nee | K58: n.v.t.
A59: 63 | B59: Nieuw West | C59: Mercedes | D59: 515CDI | E59: Sprinter | F59: Kipper | G59: Open laadbak - Bruin / Wit / Clean | H59: Bruin en witgoed | I59: Grofvuil (klein) | J59: nee | K59: n.v.t.
A60: 66 | B60: Nieuw West | C60: DAF | D60: FAN | E60: LF55.220 4x2 Aut. | F60: Kraan Kipper | G60: Open container | H60: Grofvuil | I60: Grofvuil | J60: nee | K60: smalspoor
A61: 67 | B61: Nieuw West | C61: Ginaf | D61: C | E61: 2121 N euro5 | F61: Vuilnisvoertuig | G61: Achterlader | H61: Mini / grof / rest /gft | I61: Handmatig | J61: nee | K61: smalspoor
A62: 68 | B62: Nieuw West | C62: Ginaf | D62: C | E62: 2121 N euro5 | F62: Vuilnisvoertuig | G62: Achterlader | H62: Mini / grof / rest /gft | I62: Handmatig | J62: nee | K62: smalspoor
A63: 69 | B63: Nieuw West | C63: DAF | D63: FAG | E63: 75CF 250 | F63: Vuilnisvoertuig | G63: Achterlader | H63: Mini / grof / rest /gft | I63: Handmatig | J63: nee | K63: breedspoor
A64: 70 | B64: Nieuw West | C64: DAF | D64: FAG | E64: 75CF 250 | F64: Vuilnisvoertuig | G64: Achterlader | H64: Mini / grof / rest /gft | I64: Handmatig | J64: nee | K64: breedspoor
A65: 71 | B65: Nieuw West | C65: Ginaf | D65: C | E65: 3128 N Euro5 6x2 | F65: Vuilnisvoertuig | G65: Open container | H65: Glas en papier | I65: OAIS (Containers) | J65: nee | K65: smalspoor
A66: 72 | B66: Nieuw West | C66: Ginaf | D66: C | E66: 3128 N Euro5 6x2 | F66: Vuilnisvoertuig | G66: Open container | H66: Grofvuil | I66: Grofvuil | J66: nee | K66: smalspoor
A67: 73 | B67: Nieuw West | C67: Scania | D67: P114 | E67: 280 LB 8x4*4 HSA | F67: Vuilnisvoertuig | G67: Trechter | H67: Restafval | I67: OAIS (Containers) | J67: nee | K67: breedspoor
A68: 74 | B68: Noord | C68: Ginaf | D68: C | E68: 3127 N | F68: Vuilnisvoertuig | G68: Achterlader | H68: Restafval | I68: Handmatig | J68: nee | K68: smalspoor
A69: 75 | B69: Noord | C69: Ginaf | D69: C | E69: 2120 N euro5 | F69: Kraan Kipper | G69: Open container | H69: Grofvuil | I69: Grofvuil | J69: nee | K69: smalspoor
A70: 76 | B70: Noord | C70: Ginaf | D70: X | E70: 3232-S 360 6x4 | F70: Container Afzetsysteem | G70: Haak/arm multifunctioneel | H70: Rest / Glas / Papier | I70: Ruilsysteem Ecopers | J70: n.v.t. | K70: smalspoor
A71: 77 | B71: Noord | C71: Mercedes | D71: Econic | E71: 2629 LLTNLA 6x2 | F71: Vaste opbouw | G71: tbv transport containers | H71: Rest / Glas / Papier | I71: Ruilsysteem Ecopers | J71: nee | K71: breedspoor
A72: 78 | B72: Noord | C72: Ginaf | D72: X | E72: 3232 S.360 6x4 | F72: Container Afzetsysteem | G72: Haak/arm multifunctioneel | H72: Rest / Glas / Papier | I72: Ruilsysteem Ecopers | J72: n.v.t. | K72: smalspoor
A73: 79 | B73: Noord | C73: DAF | D73: FA | E73: CF 75 250 Aut | F73: Kraan Kipper | G73: Haak/arm multifunctioneel | H73: Grofvuil | I73: Grofvuil | J73: nee | K73: breedspoor
A74: 80 | B74: Noord | C74: Ginaf | D74: X | E74: 3232 S.360 6x4 | F74: Container Afzetsysteem | G74: Haak/arm multifunctioneel | H74: Rest / Glas / Papier | I74: Ruilsysteem Ecopers | J74: n.v.t. | K74: smalspoor
A75: 81 | B75: Noord | C75: DAF | D75: FAT | E75: WS 32 T | F75: Container Afzetsysteem | G75: Haak/arm multifunctioneel | H75: Rest / Glas / Papier | I75: Ruilsysteem Ecopers | J75: n.v.t. | K75: n.v.t.
A76: 82 | B76: Noord | C76: Ginaf | D76: X6 | E76: 3232 CS.370 6x4 EU6 | F76: Container Afzetsysteem | G76: Haak/arm multifunctioneel | H76: Rest / Glas / Papier / Grof vuil | I76: Ruilsysteem Ecopers | J76: n.v.t. | K76: smalspoor
A77: 86 | B77: Oost | C77: DAF | D77: FAN | E77: CF75.310 | F77: Container Afzetsysteem | G77: Container Afzetsysteem | H77: Restafval | I77: Container wisselsysteem (IES) | J77: Welvaarts | K77: breedspoor
A78: 87 | B78: Oost | C78: DAF | D78: FAN | E78: LF 220 6x2 | F78: Kraan Kipper | G78: Open container | H78: Grofvuil | I78: Grofvuil | J78: nee | K78: smalspoor
A79: 88 | B79: Oost | C79: DAF | D79: FAN | E79: CF75.310 | F79: Container Afzetsysteem | G79: Container Afzetsysteem | H79: Restafval | I79: Container wisselsysteem (IES) | J79: Welvaarts | K79: breedspoor
A80: 89 | B80: Oost | C80: DAF | D80: FAN | E80: CF75.310 | F80: Container Afzetsysteem | G80: Container Afzetsysteem | H80: Restafval | I80: Container wisselsysteem (IES) | J80: Welvaarts | K80: breedspoor
A81: 90 | B81: Oost | C81: DAF | D81: FAN | E81: LF 220 6x2 | F81: Kraan Kipper | G81: Open container | H81: Grofvuil | I81: Grofvuil | J81: nee | K81: smalspoor
A82: 91 | B82: Oost | C82: DAF | D82: FAN | E82: CF75.310 | F82: Container Afzetsysteem | G82: Container Afzetsysteem | H82: Restafval | I82: Container wisselsysteem (IES) | J82: Welvaarts | K82: breedspoor
A83: 92 | B83: Oost | C83: DAF | D83: FAN | E83: LF 220 6x2 | F83: Kraan Kipper | G83: Open container | H83: Grofvuil | I83: Grofvuil | J83: nee | K83: smalspoor
A84: 93 | B84: Oost | C84: Mercedes | D84: Econic | E84: 2629 LL | F84: Kraan Kipper | G84: Container Afzetsysteem | H84: Grofvuil | I84: Grofvuil | J84: nee | K84: breedspoor
A85: 94 | B85: Oost | C85: Mercedes | D85: Econic | E85: 2629 LL | F85: Kraan Kipper | G85: Container Afzetsysteem | H85: Grofvuil | I85: Grofvuil | J85: nee | K85: breedspoor
A86: 95 | B86: Oost | C86: Mercedes | D86: Econic | E86: 2629 LLTNLA | F86: Container Afzetsysteem | G86: Open container | H86: Glas en papier | I86: OAIS (Containers) | J86: nee | K86: breedspoor
A87: 96 | B87: Oost | C87: Mercedes | D87: Sprinter | E87: 513CDI LWB 5.0 Handg. 4d | F87: n.v.t. | G87: n.v.t. | H87: Bruin en witgoed | I87: Grofvuil (klein) | J87: nee | K87: breedspoor
A88: 97 | B88: Oost | C88: Mercedes | D88: Econic | E88: 2633 LL 6x2/4 HUISVUILW. | F88: Vuilnisvoertuig | G88: Open laadbak | H88: Mini / bijplaatsingen | I88: OAIS (Containers) | J88: Welvaarts | K88: breedspoor
A89: 99 | B89: Oost | C89: DAF | D89: FA | E89: CF75 250 4x2 Aut | F89: Kraan Kipper | G89: Open container | H89: Grofvuil | I89: Grofvuil | J89: nee | K89: breedspoor
A90: 100 | B90: Oost | C90: DAF | D90: 45 | E90: FA LF45 | F90: Kraan Kipper | G90: Open container | H90: Grofvuil | I90: Grofvuil | J90: nee | K90: smalspoor
A91: 101 | B91: Oost | C91: DAF | D91: FAN | E91: CF75.310 Aut | F91: Container Afzetsysteem | G91: Open container / Multilift XR 21 S 51 | H91: Glas en papier | I91: OAIS (Containers) | J91: Welvaarts | K91: breedspoor
A92: 102 | B92: Oost | C92: DAF | D92: FAN | E92: CF75.310 Aut | F92: Container Afzetsysteem | G92: Open container / Multilift XR 21 S 51 | H92: Glas en papier | I92: OAIS (Containers) | J92: Welvaarts | K92: breedspoor
A93: 103 | B93: Oost | C93: DAF | D93: FAN | E93: CF75.310 | F93: Container Afzetsysteem | G93: Container Afzetsysteem | H93: Restafval | I93: Container wisselsysteem (IES) | J93: Welvaarts | K93: breedspoor
A94: 104 | B94: Oost | C94: DAF | D94: FAN | E94: CF75.310 | F94: Container Afzetsysteem | G94: Container Afzetsysteem | H94: Restafval | I94: Container wisselsysteem (IES) | J94: Welvaarts | K94: n.v.t.
A95: 108 | B95: Zuid | C95: DAF | D95: FAN | E95: LF55.220 6x2 | F95: Kraan Kipper | G95: Open container | H95: Grofvuil | I95: Grofvuil | J95: nee | K95: smalspoor
A96: 109 | B96: Zuid | C96: DAF | D96: FAN | E96: CF75.310 | F96: Container Afzetsysteem | G96: Container Afzetsysteem | H96: Restafval | I96: Container wisselsysteem (IES) | J96: Welvaarts | K96: breedspoor
A97: 110 | B97: Zuid | C97: DAF | D97: FAN | E97: LF 220 6x2 | F97: Kraan Kipper | G97: Open container | H97: Grofvuil | I97: Grofvuil | J97: nee | K97: smalspoor
A98: 111 | B98: Zuid | C98: DAF | D98: FAN | E98: CF75.310 | F98: Container Afzetsysteem | G98: Container Afzetsysteem | H98: Restafval | I98: Container wisselsysteem (IES) | J98: Welvaarts | K98: breedspoor
A99: 112 | B99: Zuid | C99: DAF | D99: FAN | E99: CF75.310 | F99: Container Afzetsysteem | G99: Container Afzetsysteem | H99: Restafval | I99: Container wisselsysteem (IES) | J99: Welvaarts | K99: breedspoor
A100: 113 | B100: Zuid | C100: DAF | D100: FAN | E100: LF 220 6x2 | F100: Kraan Kipper | G100: Open container | H100: Grofvuil | I100: Grofvuil | J100: nee | K100: smalspoor
A101: 114 | B101: Zuid | C101: DAF | D101: FAN | E101: CF75.310 | F101: Container Afzetsysteem | G101: Container Afzetsysteem | H101: Restafval | I101: Container wisselsysteem (IES) | J101: Welvaarts | K101: breedspoor
A102: 115 | B102: Zuid | C102: DAF | D102: FAN | E102: CF290 6x2 Day Cab | F102: Container Afzetsysteem | G102: Glas/papier open container | H102: Glas en papier | I102: OAIS (Containers) | J102: Welvaarts | K102: breedspoor
A103: 116 | B103: Zuid | C103: DAF | D103: FAQ | E103: CF75.310 | F103: Container Afzetsysteem | G103: Perscontainer voorlader | H103: Restafval | I103: OAIS (Containers) | J103: nee | K103: breedspoor
A104: 117 | B104: Zuid | C104: DAF | D104: FAQ | E104: CF75.310 | F104: Container Afzetsysteem | G104: Perscontainer voorlader | H104: Restafval | I104: OAIS (Containers) | J104: nee | K104: breedspoor
A105: 118 | B105: Zuid | C105: DAF | D105: FA 75 | E105: CF 250 FAN Vuilnisw. | F105: Vuilnisvoertuig | G105: Trechter | H105: Restafval | I105: OAIS (Containers) | J105: nee | K105: breedspoor
A106: 120 | B106: Zuid | C106: DAF | D106: 75 | E106: FAN 75CF.250 | F106: Vuilnisvoertuig | G106: Trechter | H106: Restafval | I106: OAIS (Containers) | J106: Welvaarts | K106: breedspoor
A107: 121 | B107: Zuid | C107: Ginaf | D107: C | E107: 3127 N | F107: Vuilnisvoertuig | G107: Trechter | H107: Restafval | I107: OAIS (Containers) | J107: Welvaarts | K107: smalspoor
A108: 122 | B108: Zuid | C108: DAF | D108: FAN | E108: CF75 250 U 380 | F108: Kraan Kipper | G108: Open container | H108: Grofvuil | I108: Grofvuil | J108: nee | K108: breedspoor
A109: 123 | B109: Zuid | C109: DAF | D109: FAN | E109: CF75 250 | F109: Container Afzetsysteem | G109: Glas/papier open container | H109: Glas en papier | I109: OAIS (Containers) | J109: nee | K109: breedspoor
A110: 124 | B110: Zuid | C110: DAF | D110: FAN | E110: CF75 250 | F110: Container Afzetsysteem | G110: Glas/papier open container | H110: Glas en papier | I110: OAIS (Containers) | J110: nee | K110: breedspoor
A111: 125 | B111: Zuid | C111: DAF | D111: FAN | E111: CF75 250 | F111: Vuilnisvoertuig | G111: Trechter | H111: Restafval | I111: OAIS (Containers) | J111: Welvaarts | K111: breedspoor
A112: 126 | B112: Zuid | C112: DAF | D112: FAN | E112: CF75 250 | F112: Vuilnisvoertuig | G112: Trechter | H112: Kunststof | I112: OAIS (Containers) | J112: Welvaarts | K112: breedspoor
A113: 127 | B113: Zuid | C113: DAF | D113: FAN | E113: CF75 250 U 380 | F113: Kraan Kipper | G113: Container Afzetsysteem | H113: Grofvuil | I113: Grofvuil | J113: nee | K113: breedspoor
A114: 133 | B114: Zuidoost | C114: DAF | D114: 75 | E114: FAG 75CF250 | F114: Vuilnisvoertuig | G114: Achterlader | H114: Rest en bijplaatsingen | I114: Handmatig | J114: nee | K114: breedspoor
A115: 134 | B115: Zuidoost | C115: DAF | D115: 75 | E115: FAG 75CF250 | F115: Vuilnisvoertuig | G115: Achterlader | H115: Rest en bijplaatsingen | I115: Handmatig | J115: nee | K115: breedspoor
A116: 135 | B116: Zuidoost | C116: DAF | D116: 75 | E116: FAG 75CF250 | F116: Vuilnisvoertuig | G116: Achterlader | H116: Rest en bijplaatsingen | I116: Handmatig | J116: nee | K116: breedspoor
A117: 136 | B117: Zuidoost | C117: DAF | D117: FAN | E117: CF75 250 | F117: Kraan Kipper | G117: Open container | H117: Grofvuil | I117: Grofvuil | J117: nee | K117: breedspoor
A118: 137 | B118: Zuidoost | C118: DAF | D118: FAN | E118: CF75 250 | F118: Kraan Kipper | G118: Open container | H118: Grofvuil | I118: Grofvuil | J118: nee | K118: breedspoor
A119: 138 | B119: Zuidoost | C119: DAF | D119: FAN | E119: CF75 250 | F119: Kraan Kipper | G119: Open container | H119: Grofvuil | I119: Grofvuil | J119: nee | K119: breedspoor
A120: 139 | B120: Zuidoost | C120: DAF | D120: FAN | E120: CF75 250 | F120: Container Afzetsysteem | G120: Afzetsysteem Carqotec XR21556RP 1 L | H120: Glas en papier | I120: OAIS (Containers) | J120: nee | K120: breedspoor
A121: 140 | B121: Zuidoost | C121: Scania | D121: P114 | E121: 280 LB 8x4*4 HSA | F121: Vuilnisvoertuig | G121: Trechter | H121: Rest | I121: OAIS (Containers) | J121: nee | K121: breedspoor
A122: 141 | B122: Zuidoost | C122: Scania | D122: P114 | E122: 280 LB 8x4*4 HSA | F122: Vuilnisvoertuig | G122: Trechter | H122: Rest | I122: OAIS (Containers) | J122: nee | K122: breedspoor
A123: 142 | B123: Zuidoost | C123: Scania | D123: P114 | E123: 280 LB 8x4*4 HSA | F123: Vuilnisvoertuig | G123: Trechter | H123: Rest | I123: OAIS (Containers) | J123: nee | K123: breedspoor
A124: 143 | B124: Zuidoost | C124: DAF | D124: FAN | E124: CF75.310 | F124: Container Afzetsysteem | G124: Container Afzetsysteem | H124: Rest | I124: Container wisselsysteem (IES) | J124: Welvaarts | K124: breedspoor
A125: 145 | B125: Noord | C125: Mercedes | D125: A | E125: ECONIC 2629 LLTNLA 6X2/4 | F125: Container Afzetsysteem | G125: n.v.t. | H125: Rest / Glas / Papier / Grof vuil | I125: Ruilsysteem Ecopers | J125: n.v.t. | K125: breedspoor

Sheet 7
A1: 7. Kengetallen uitvoerend en indirect personeel (bijgewerkt tot januari 2018)
B3: Formatie in fte uitvoerend personeel | C3: Formatie in fte leidinggevend en indirect personeel | E3: Totaal
A4: Stadsdeel Oost | B4: =35.7-2 -> 33.7 | C4: =6.78+2 -> 8.78 | E4: =B4+C4 -> 42.48
A5: Stadsdeel Noord | B5: 18.34 | C5: 6.31 | E5: 24.65
A6: Stadsdeel Zuid | B6: 66.5 | C6: 21.75 | E6: 88.25
A7: Stadsdeel Nieuw-West | B7: 38 | C7: 7.9 | E7: 45.9
A8: Stadsdeel Zuidoost | B8: 34 | C8: 2 | E8: 36
A9: Stadsdeel Centrum | B9: 43 | C9: 6.78 | E9: 49.78
A10: Afvalservice West | B10: 48 | C10: 15 | E10: 63
A12: Totaal | B12: =SUM(B4:B10) -> 281.54 | C12: =SUM(C4:C10) -> 68.52 | E12: =SUM(E4:E10) -> 350.06

Sheet 8
A1: 8. Lijst met huidige applicaties
B3: Naam applicatie | C3: Leverancier | D3: Functionaliteiten | E3: Stadsdeel
A5: T.b.v. Transport planning | B5: Rostar CAS | C5: Paralax BV | D5: Gegevensbeheer personeel en voertuigen; Roosterplanning medewerkers | F5: √ | G5: √
B6: AfvalRIS | C6: GMT Waste Benelux BV / AMCS | D6: Gegevensbeheer personeel en voertuigen; Roosterplanning medewerkers | I6: √
B7: Enevo One | C7: Total Waste Systems | D7: Monitoren en voorspellen vulgraad; Ritplanning (alleen voor fractie kunststof) | E7: √ | F7: √ | G7: √ | H7: √ | I7: √ | J7: √ | K7: √
B8: MS Office | C8: Microsoft | D8: Gegevensbeheer personeel en voertuigen; Roosterplanning medewerkers; Routeplanning | E8: √ | G8: √ | H8: √ | I8: √ | J8: √ | K8: √
A10: T.b.v. beheer afvalcontainers en vulgraden | B10: Container Management Systeem | C10: Kon. Bammens | D10: Gegevensbeheer afvalcontainers en onderhoud | E10: √ | F10: √ | G10: √ | H10: √ | I10: √ | J10: √ | K10: √
B11: Container Management Systeem | C11: Engels HLC BV | D11: Gegevensbeheer afvalcontainers, afvalpassen, onderhoud | G11: √ | L11: Applicatie wordt uitgefaseerd als gevolg van ander type afvalcontainer
B12: Stateview | C12: Engels HLC BV | D12: Monitoren vulgraad | G12: √ | L12: Applicatie wordt uitgefaseerd als gevolg van ander type afvalcontainer
B13: Welvaarts Internet Portal | C13: Welvaarts | D13: Registreren en inzien van weeggegevens afvalcontainers | E13: √ | F13: √ | G13: √ | H13: √ | I13: √ | J13: √ | K13: √
B14: Enevo One | C14: Total Waste Systems | D14: Monitoren en voorspellen vulgraad; Ritplanning (alleen voor fractie kunststof) | E14: √ | F14: √ | G14: √ | H14: √ | I14: √ | J14: √ | K14: √
B15: Sicon Persbesturing | C15: Sidcon Milieutechniek | D15: Monitoren en voorspellen vulgraad en bedienen bedrijfsstatus (alleen voor ondergrondse perscontainers) | F15: √ | I15: √
B16: AfvalRIS | C16: GMT Waste Benelux BV | D16: Beheren contracten bedrijfsafval en planbeheer voor het inzamelen van grofvuil (op afspraak) | F16: √
B17: MS Office | C17: Microsoft | D17: Beheren weeghistorie en voorspellen vulgraad en ledigingsfrequentie (alle afvalcontainers) | E17: √ | F17: √ | G17: √ | H17: √ | I17: √ | J17: √ | K17: √
A19: T.b.v. inzamel-voertuigen | B19: Online tool Leaseplan | C19: LeasePlan Nederland B.V. | D19: Beheren wagenpark en facturatie tussen Facilitair Bureau en stadsdelen / afvalorganisatie | E19: √ | F19: √ | G19: √ | H19: √ | I19: √ | J19: √ | K19: √
B20: Perfect View-modules | C20: Perfect View | D20: Beheren gegevens wagenpark, schades, onderhoud, kilometers, stortgegevens | F20: √
B21: MS Office | C21: Microsoft | D21: Planning en beheren gegevens wagenpark, schades, onderhoud, kilometers, stortgegevens | E21: √ | G21: √ | H21: √ | I21: √ | J21: √ | K21: √
A23: T.b.v. personele aspecten | B23: Personeelsnet (P-Net) - KRM | D23: Beheren personeelsmanagement, urenverwerking etc. | E23: √ | F23: √ | G23: √ | H23: √ | I23: √ | J23: √ | K23: √
B24: MS Office | C24: Microsoft | D24: Gegevensbeheer personeel, rooster(profielen), urenverwerking, verlofafhandeling | E24: √ | G24: √ | H24: √ | J24: √ | K24: √
A26: T.b.v. chauffeur-ondersteuning | B26: Ecloud - Emobile | C26: Promotheus | D26: Rit- en kilometerregistratie, rijstijlanalyse chauffeurs en navigatie | I26: √ | J26: √
B27: WeGo Boordcomputer | C27: WeGo | D27: Registreren en beheren van gegevens over gebruikers, reserveringen en ritten. Ontgrendelingssysteem. | E27: √ | F27: √ | G27: √ | H27: √ | I27: √ | J27: √ | K27: √ | L27: Boordcomputer voor alle voertuigen van de gemeente Amsterdam
B28: Transvision | C28: AMCS Group | D28: Routeplansysteem en navigatie (alleen voor grofvuil) | F28: √
A30: Overig | B30: Qlikview | C30: GMT Waste Benelux BV | D30: Genereren van rapporten, trendoverzichten en forecasts inzamelproces | E30: √ | F30: √ | G30: √ | H30: √ | I30: √ | J30: √ | K30: √

Sheet 9
A1: 9. Reeds aanwezige informatieplatformen incl. koppelvlakken
A3: Naam applicatie | B3: Leverancier | C3: Input | D3: Output | E3: Gegevensuitwisseling
A5: Welvaarts Internet Portal | B5: Welvaarts http://www.welvaarts.com/ | C5: Registraties omtrent wegingen (volgnummer, locatie, weging vooraf lediging, weging na lediging, netto weging, tijdstip van wegen). Voor alle inzamellocaties. | D5: - | E5: - Automatische berichtenuitwisseling mogelijk via JSON/REST en XML SOAP bericht
A6: Sidcon Persbesturing | B6: Sidcon Milieutechniek http://www.sidcon.nl/ | C6: Registraties van actuele vulgraad en bedienen bedrijfsstatus (alleen voor ondergrondse perscontainers van type Sidcon) | D6: - | E6: - Automatische berichtenuitwisseling mogelijk conform STOSAG standaarden
A7: Enevo One | B7: Total Waste Systems http://www.totalwastesystems.nl/ https://www.enevo.com/ | C7: Registraties van sensoren van actuele vulgraden (alleen voor vulgraadsensoren van type Enevo ONE, in alle afvalcontainers van afvalfractie kunststof) | D7: - | E7: - Automatische berichtenuitwisseling mogelijk via JSON en conform STOSAG standaarden
A8: Container Management Systeem | B8: Kon. Bammens / OVIS https://www.bammens.com/ http://ovistelematics.com/ | C8: Registraties van statische containergegevens (locatie, afvalfractie, type ledigingsappraat, capaciteit) en bedrijfsstatus, van alle afvalcontainers. | D8: - | E8: - Automatische berichtenuitwisseling mogelijk via REST API
A10: Datapunt - Amsterdam City Data | C10: Gebundelde registraties omtrent wegingen, vulgraden en containergegevens. Voor alle inzamellocaties. | D10: - | E10: - Automatische berichtenuitwisseling mogelijk via REST-API en services via de (OpenGeoSpatial) OGC specificaties (zoals WMS, WFS en tiles).
A11: Personeelsnet - P-Net | C11: Registraties van persoonsgegevens van uitvoerend personeel zoals naam, personeelsnummer, geboortedatum, werklocatie en rooster(profiel) | D11: Registratie werkelijk gewerkte uren van uitvoerend personeel | E11: - Berichtenuitwisseling mogelijk via applicatieservice KernRegistratie Medewerkers (KRM). Berichtenuitwisseling via CSV of SOAP berichten
A12: 14020 - Online grofvuilformulier | C12: Registraties meldingen voor grofvuil ophalen op afspraak | D12: Registratie afhandeling opgehaald grof vuil (wel opgehaald, niet opgehaald incl. oorzaak) | E12: - Bestandsverkeer mogelijk via CSV en automatische berichtenuitwisseling mogelijk via XML SOAP bericht
A13: KIM-systeem voor MORA Meldingen | C13: Registraties van meldingen openbare ruimte van bewoners (vb. defecte container, volle container, verkeerd aangeboden grof vuil) | D13: - | E13: - Bestandsverkeer mogelijk via een XML SOAP bericht
A14: Ultimo | C14: Registraties van specificaties inzamelvoertuigen | E14: - n.t.b. (ingebruikname staat gepland in Q3 2018)
A15: Data Warehouse (AMI) | C15: - | D15: Ontvangen van gegevens vanuit operationele proces. | E15: - Databasekoppeling of berichtenuitwisseling mogelijk via CSV en XML
A16: Amsterdams Financieel Systeem (AFS) | C16: - | D16: - | E16: - Semiautomatisch bestandsverkeer via sFTP-server - Geen volautomatisch XML-berichtenverkeer mogelijk

Sheet 10
A1: 10. Relevante informatie verkeer en infrastructuur Amsterdam
B3: Element | C3: Opmerking
B4: Scholen en andere kinderrijke locaties | C4: Bij meer dan 200 (basis)scholen tussen 08:00 en 09:00, is het inzamelvoertuigen niet toegestaan om binnen een straal van 150 meter te geraken (tijdsvak afhankelijk van schoollocatie en dag). Ook andere kinderrijke locaties worden actief vermeden.
B5: Winkelgebieden | C5: Bij meer dan 100 aangewezen winkelstraten dient rekening te worden gehouden met winkelend publiek en laad-/losijden van winkels (tijdsvak afhankelijk van locatie en dag).
B6: Corridors | C6: Bij meer dan 50 aangewezen corridors is het inzamelvoertuigen niet toegestaan stil te staan of geheel niet te passeren. Dit is afhankelijk van locatie, tijdstip en dag..
B7: Voorkeurswijken/-straten | C7: Iedere straat heeft zijn voorkeur/behoefte. Woonwijken dienen bij voorkeur tijdens werkuren te worden bediend, terwijl horecabuurten na het middaguur moeten worden gemeden (tijdsvakken afhankelijk van locatie en dag). Dergelijke business rules moeten worden opgenomen in de routebepaling.
B8: Drukke wegen /straten | C8: Bij drukke passages dient inzamelvoertuig sterk rekening te houden met vertraging, t.g.v. langzaamrijdend of stilstaand verkeer.
B9: Drukke fietsroutes | C9: Bij drukke fietslocaties dient inzamelvoertuig sterk rekening te houden met met fietsverkeer.
B10: Hoogte- en breedte straten/viaducten | C10: Bij een significant aantal passages dient rekening te worden gehouden met nauwe passages en maximale hoogtes hebben. De afmetingen van het inzamelvoertuig bepaalt of een straat wel/niet/beperkt toegankelijk is.
B11: Tonnage begrensde straten/bruggen | C11: Bij een significant aantal bruggen, viaducten en dijken dient rekening te worden gehouden met hoogte en breedte, maar ook met de toegestane tonnage voor passerende voertuigen.
B12: Vrijstellingen | C12: Voor een aantal plekken geldt dat inzamelvoertuigen een ontheffing hebben.

Sheet 11
A1: 11. Voertuigproductiviteit 2017
A2: Gemiddelde voertuigproductiviteit per stadsdeel, per fractie
A46: NB Fractie
